fUST/lending_fUST_20250214
["ID","MTS","AMOUNT","RATE_DAILY","PERIOD"]
[352981795,1739475043681,-2618.02,0.00013698,2]
[352981798,1739475043690,-501.27409911,0.00013698,2]
[352981800,1739475043700,-500.0,0.00013698,2]
[352981802,1739475043710,-529.8901994,0.00013698,2]
[352981804,1739475043720,-500.0,0.00013698,2]
[352981806,1739475043730,-500.0,0.00013698,2]
[352981808,1739475043740,-1750.07,0.00013698,2]
[352981810,1739475043749,-500.0,0.00013698,2]
[352981812,1739475043759,-4154.59,0.00013698,2]
[352981814,1739475043769,-500.0,0.00013698,2]
[352981816,1739475043778,-500.0,0.00013698,2]
[352981818,1739475043789,-500.0,0.00013698,2]
[352981820,1739475043798,-500.0,0.00013698,2]
[352981822,1739475043808,-500.0,0.00013698,2]
[352981823,1739475043817,-500.0,0.00013698,2]
[352981825,1739475043826,-500.0,0.00013698,2]
[352981827,1739475043836,-500.0,0.00013698,2]
[352981829,1739475043846,-500.0,0.00013698,2]
[352981832,1739475043855,-2233.08,0.00013698,2]
[352981834,1739475043864,-205.50899377,0.00013698,2]
[352981836,1739475043874,-500.0,0.00013698,2]
[352981838,1739475043883,-205.05294211,0.00013698,2]
[352981840,1739475043893,-500.0,0.00013698,2]
[352981841,1739475043902,-500.0,0.00013698,2]
[352981844,1739475043912,-500.0,0.00013698,2]
[352981845,1739475043921,-500.0,0.00013698,2]
[352981847,1739475043931,-500.0,0.00013698,2]
[352981849,1739475043941,-1275.0,0.00013698,2]
[352981851,1739475043951,-872.37,0.00013698,2]
[352981853,1739475043961,-500.0,0.00013698,2]
[352981855,1739475043971,-500.0,0.00013698,2]
[352981857,1739475043980,-500.0,0.00013698,2]
[352981859,1739475043990,-3092.65,0.00013698,2]
[352981862,1739475044000,-500.0,0.00013698,2]
[352981863,1739475044009,-500.0,0.00013698,2]
[352981866,1739475044019,-500.0,0.00013698,2]
[352981867,1739475044028,-1057.61,0.00013698,2]
[352981869,1739475044039,-1057.61,0.00013698,2]
[352981871,1739475044048,-500.0,0.00013698,2]
[352981873,1739475044058,-1057.61,0.00013698,2]
[352981875,1739475044067,-1057.61,0.00013698,2]
[352981877,1739475044077,-4304.73,0.00013698,2]
[352981879,1739475044086,-1057.61,0.00013698,2]
[352981881,1739475044096,-1057.61,0.00013698,2]
[352981883,1739475044105,-500.0,0.00013698,2]
[352981885,1739475044115,-1057.61,0.00013698,2]
[352981887,1739475044125,-1057.61,0.00013698,2]
[352981889,1739475044135,-1057.61,0.00013698,2]
[352981891,1739475044145,-1057.61,0.00013698,2]
[352981893,1739475044154,-500.0,0.00013698,2]
[352981895,1739475044163,-1057.61,0.00013698,2]
[352981897,1739475044173,-1057.61,0.00013698,2]
[352981899,1739475044183,-1057.61,0.00013698,2]
[352981901,1739475044193,-1057.61,0.00013698,2]
[352981903,1739475044209,-1057.61,0.00013698,2]
[352981905,1739475044224,-1856.21,0.00013698,2]
[352981907,1739475044233,-766.36,0.00013698,2]
[352981909,1739475044242,-500.0,0.00013698,2]
[352981911,1739475044251,-500.0,0.00013698,2]
[352981913,1739475044261,-500.0,0.00013698,2]
[352981916,1739475044271,-500.0,0.00013698,2]
[352981917,1739475044280,-500.0,0.00013698,2]
[352981919,1739475044289,-1291.66,0.00013698,2]
[352981921,1739475044299,-1162.65,0.00013698,2]
[352981923,1739475044308,-500.0,0.00013698,2]
[352981926,1739475044318,-406.20322179,0.00013698,2]
[352981928,1739475044327,-10291.65,0.00013698,2]
[352981929,1739475044336,-500.0,0.00013698,2]
[352981931,1739475044346,-500.0,0.00013698,2]
[352981933,1739475044355,-500.0,0.00013698,2]
[352981935,1739475044364,-757.4,0.00013698,2]
[352981937,1739475044373,-500.0,0.00013698,2]
[352981939,1739475044382,-1125.5,0.00013698,2]
[352981941,1739475044392,-500.0,0.00013698,2]
[352981943,1739475044401,-500.0,0.00013698,2]
[352981945,1739475044411,-500.40028626,0.00013698,2]
[352981947,1739475044420,-31380.31,0.00013698,2]
[352981949,1739475044430,-923.57,0.00013698,2]
[352981951,1739475044439,-500.0,0.00013698,2]
[352981953,1739475044449,-1121.19,0.00013698,2]
[352981955,1739475044458,-500.0,0.00013698,2]
[352981957,1739475044468,-500.0,0.00013698,2]
[352981959,1739475044479,-500.0,0.00013698,2]
[352981961,1739475044488,-500.0,0.00013698,2]
[352981963,1739475044497,-500.0,0.00013698,2]
[352981965,1739475044507,-1780.54,0.00013698,2]
[352981967,1739475044516,-500.0,0.00013698,2]
[352981969,1739475044526,-500.0,0.00013698,2]
[352981971,1739475044535,-1585.84,0.00013698,2]
[352981973,1739475044545,-500.0,0.00013698,2]
[352981975,1739475044556,-783.77,0.00013698,2]
[352981977,1739475044566,-500.0,0.00013698,2]
[352981979,1739475044576,-500.0,0.00013698,2]
[352981981,1739475044585,-500.0,0.00013698,2]
[352981983,1739475044595,-500.0,0.00013698,2]
[352981985,1739475044605,-317.03770993,0.00013698,2]
[352981987,1739475044615,-500.0,0.00013698,2]
[352981989,1739475044624,-951.6,0.00013698,2]
[352981991,1739475044634,-500.0,0.00013698,2]
[352981993,1739475044643,-567.09,0.00013698,2]
[352981995,1739475044652,-500.0,0.00013698,2]
[352981997,1739475044662,-500.0,0.00013698,2]
[352981999,1739475044671,-500.0,0.00013698,2]
[352982001,1739475044681,-14092.7,0.00013698,2]
[352982003,1739475044690,-500.0,0.00013698,2]
[352982005,1739475044700,-500.0,0.00013698,2]
[352982007,1739475044710,-500.0,0.00013698,2]
[352982009,1739475044720,-500.0,0.00013698,2]
[352982011,1739475044731,-500.0,0.00013698,2]
[352982013,1739475044743,-500.0,0.00013698,2]
[352982015,1739475044753,-673.23,0.00013698,2]
[352982017,1739475044762,-500.0,0.00013698,2]
[352982019,1739475044772,-500.0,0.00013698,2]
[352982021,1739475044781,-508.58,0.00013698,2]
[352982023,1739475044793,-839.97,0.00013698,2]
[352982025,1739475044802,-672.65,0.00013698,2]
[352982027,1739475044812,-808.75,0.00013698,2]
[352982029,1739475044821,-500.0,0.00013698,2]
[352982031,1739475044831,-500.0,0.00013698,2]
[352982033,1739475044841,-172.26,0.00013698,2]
[352982035,1739475044850,-500.0,0.00013698,2]
[352982037,1739475044860,-1326.14,0.00013698,2]
[352982039,1739475044871,-624.69,0.00013698,2]
[352982041,1739475044880,-500.0,0.00013698,2]
[352982043,1739475044890,-2281.73,0.00013698,2]
[352982045,1739475044899,-500.0,0.00013698,2]
[352982047,1739475044908,-500.0,0.00013698,2]
[352982049,1739475044918,-580.31,0.00013698,2]
[352982051,1739475044928,-500.0,0.00013698,2]
[352982053,1739475044937,-500.0,0.00013698,2]
[352982055,1739475044947,-2835.15,0.00013698,2]
[352982057,1739475044956,-500.0,0.00013698,2]
[352982059,1739475044966,-500.0,0.00013698,2]
[352982061,1739475044976,-550.57,0.00013698,2]
[352982063,1739475044986,-500.0,0.00013698,2]
[352982065,1739475044995,-500.0,0.00013698,2]
[352982067,1739475045005,-567.42,0.00013698,2]
[352982069,1739475045015,-1080.31,0.00013698,2]
[352982071,1739475045024,-1331.93,0.00013698,2]
[352982073,1739475045034,-500.0,0.00013698,2]
[352982075,1739475045044,-500.0,0.00013698,2]
[352982077,1739475045053,-6039.11,0.00013698,2]
[352982079,1739475045062,-500.0,0.00013698,2]
[352982081,1739475045072,-500.0,0.00013698,2]
[352982083,1739475045082,-500.0,0.00013698,2]
[352982085,1739475045092,-500.0,0.00013698,2]
[352982087,1739475045101,-585.93,0.00013698,2]
[352982089,1739475045111,-500.0,0.00013698,2]
[352982091,1739475045121,-500.0,0.00013698,2]
[352982093,1739475045130,-534.36175076,0.00013698,2]
[352982095,1739475045139,-500.0,0.00013698,2]
[352982097,1739475045149,-552.7,0.00013698,2]
[352982099,1739475045160,-482.64464465,0.00013698,2]
[352982101,1739475045168,-1143.99,0.00013698,2]
[352982103,1739475045177,-500.0,0.00013698,2]
[352982105,1739475045187,-803.51,0.00013698,2]
[352982107,1739475045197,-500.0,0.00013698,2]
[352982109,1739475045206,-500.0,0.00013698,2]
[352982111,1739475045215,-500.0,0.00013698,2]
[352982113,1739475045225,-500.0,0.00013698,2]
[352982114,1739475045234,-500.0,0.00013698,2]
[352982116,1739475045244,-500.0,0.00013698,2]
[352982118,1739475045254,-500.0,0.00013698,2]
[352982120,1739475045263,-350.57794522,0.00013698,2]
[352982122,1739475045273,-500.0,0.00013698,2]
[352982124,1739475045282,-564.04,0.00013698,2]
[352982126,1739475045293,-507.80469073,0.00013698,2]
[352982128,1739475045303,-500.0,0.00013698,2]
[352982130,1739475045313,-500.0,0.00013698,2]
[352982132,1739475045323,-500.0,0.00013698,2]
[352982134,1739475045332,-500.0,0.00013698,2]
[352982136,1739475045342,-500.0,0.00013698,2]
[352982138,1739475045351,-2823.75,0.00013698,2]
[352982140,1739475045361,-500.0,0.00013698,2]
[352982142,1739475045370,-503.15110495,0.00013698,2]
[352982144,1739475045380,-500.0,0.00013698,2]
[352982146,1739475045389,-2310.0,0.000137,2]
[352982148,1739475045399,-215.9004297,0.000137,2]
[352982150,1739475045407,-154.1710741,0.000137,2]
[352982152,1739475045417,-582.88,0.00013779,2]
[352982154,1739475045427,-582.88,0.00013779,2]
[352982156,1739475045437,-582.88,0.00013779,2]
[352982158,1739475045447,-582.88,0.00013779,2]
[352982160,1739475045456,-582.88,0.00013779,2]
[352982162,1739475045467,-582.88,0.00013779,2]
[352982164,1739475045479,-582.88,0.00013779,2]
[352982166,1739475045492,-582.88,0.00013779,2]
[352982168,1739475045502,-582.88,0.00013779,2]
[352982170,1739475045511,-582.88,0.00013779,2]
[352982172,1739475045523,-582.93705194,0.00013779,2]
[352982174,1739475045534,-1057.61,0.00013779,2]
[352982176,1739475045546,-1057.61,0.00013779,2]
[352982178,1739475045556,-1057.61,0.00013779,2]
[352982180,1739475045566,-1057.61,0.00013779,2]
[352982182,1739475045576,-1057.61,0.00013779,2]
[352982184,1739475045586,-1057.61,0.00013779,2]
[352982186,1739475045596,-1057.61,0.00013779,2]
[352982187,1739475045605,-1057.61,0.00013779,2]
[352982188,1739475045615,-1057.67460573,0.00013779,2]
[352982189,1739475045624,-451.63976033,0.0001378,2]
[352982190,1739475045633,-500.0,0.0001378,2]
[352982191,1739475045643,-500.0,0.0001378,2]
[352982192,1739475045652,-500.0,0.0001378,2]
[352982193,1739475045661,-500.0,0.0001378,2]
[352982194,1739475045671,-500.0,0.0001378,2]
[352982195,1739475045681,-500.0,0.0001378,2]
[352982196,1739475045690,-500.0,0.0001378,2]
[352982197,1739475045699,-285.56613833,0.0001378,2]
[352982198,1739475045709,-500.0,0.0001378,2]
[352982199,1739475045719,-500.0,0.0001378,2]
[352982200,1739475045728,-500.0,0.0001378,2]
[352982201,1739475045738,-500.0,0.0001378,2]
[352982203,1739475045748,-500.0,0.0001378,2]
[352982204,1739475045757,-500.0,0.0001378,2]
[352982206,1739475045767,-500.0,0.0001378,2]
[352982208,1739475045777,-500.0,0.0001378,2]
[352982210,1739475045786,-500.0,0.0001378,2]
[352982212,1739475045798,-500.0,0.0001378,2]
[352982214,1739475045808,-500.0,0.0001378,2]
[352982216,1739475045821,-500.0,0.0001378,2]
[352982218,1739475045830,-500.0,0.0001378,2]
[352982220,1739475045840,-500.0,0.0001378,2]
[352982222,1739475045850,-500.0,0.0001378,2]
[352982224,1739475045861,-500.0,0.0001378,2]
[352982226,1739475045871,-500.0,0.0001378,2]
[352982228,1739475045880,-505.17996683,0.0001378,2]
[352982231,1739475045890,-500.0,0.0001378,2]
[352982232,1739475045899,-500.0,0.0001378,2]
[352982235,1739475045910,-500.0,0.0001378,2]
[352982237,1739475045921,-501.89548761,0.0001378,2]
[352982239,1739475045931,-500.0,0.0001378,2]
[352982241,1739475045940,-234.68879614,0.0001378,2]
[352982243,1739475045949,-500.0,0.0001378,2]
[352982245,1739475045958,-500.0,0.0001378,2]
[352982247,1739475045968,-500.0,0.0001378,2]
[352982248,1739475045977,-500.0,0.0001378,2]
[352982250,1739475045987,-500.0,0.0001378,2]
[352982253,1739475045997,-500.0,0.0001378,2]
[352982255,1739475046007,-500.0,0.0001378,2]
[352982259,1739475046017,-500.0,0.0001378,2]
[352982263,1739475046027,-500.0,0.0001378,2]
[352982266,1739475046037,-500.0,0.0001378,2]
[352982269,1739475046050,-500.0,0.0001378,2]
[352982272,1739475046060,-500.0,0.0001378,2]
[352982274,1739475046069,-500.0,0.0001378,2]
[352982287,1739475046186,-219.63500113,0.0001378,2]
[352982289,1739475046196,-500.0,0.0001378,2]
[352982291,1739475046205,-500.0,0.0001378,2]
[352982293,1739475046215,-500.0,0.0001378,2]
[352982296,1739475046225,-500.0,0.0001378,2]
[352982298,1739475046234,-500.0,0.0001378,2]
[352982300,1739475046243,-500.0,0.0001378,2]
[352982302,1739475046252,-580.51879037,0.0001378,2]
[352982304,1739475046262,-500.0,0.0001378,2]
[352982308,1739475046273,-500.0,0.0001378,2]
[352982310,1739475046282,-500.0,0.0001378,2]
[352982313,1739475046294,-500.0,0.0001378,2]
[352982316,1739475046304,-500.0,0.0001378,2]
[352982318,1739475046313,-500.0,0.0001378,2]
[352982320,1739475046323,-500.8498799,0.0001378,2]
[352982322,1739475046333,-432.95567777,0.0001378,2]
[352982324,1739475046342,-500.0,0.0001378,2]
[352982326,1739475046351,-500.0,0.0001378,2]
[352982328,1739475046361,-500.0,0.0001378,2]
[352982330,1739475046371,-500.0,0.0001378,2]
[352982332,1739475046380,-500.0,0.0001378,2]
[352982335,1739475046390,-500.0,0.0001378,2]
[352982336,1739475046399,-500.0,0.0001378,2]
[352982338,1739475046409,-500.0,0.0001378,2]
[352982340,1739475046418,-500.0,0.0001378,2]
[352982342,1739475046427,-768.77,0.0001378,2]
[352982344,1739475046437,-500.0,0.0001378,2]
[352982346,1739475046446,-500.0,0.0001378,2]
[352982348,1739475046455,-500.0,0.0001378,2]
[352982350,1739475046466,-500.0,0.0001378,2]
[352982352,1739475046477,-500.0,0.0001378,2]
[352982354,1739475046488,-500.0,0.0001378,2]
[352982356,1739475046497,-676.76,0.0001378,2]
[352982358,1739475046507,-394.71676488,0.0001378,2]
[352982360,1739475046518,-500.0,0.0001378,2]
[352982362,1739475046529,-500.0,0.0001378,2]
[352982363,1739475046538,-500.0,0.0001378,2]
[352982366,1739475046552,-567.0,0.0001378,2]
[352982367,1739475046562,-500.0,0.0001378,2]
[352982369,1739475046572,-650.61,0.0001378,2]
[352982372,1739475046582,-500.0,0.0001378,2]
[352982373,1739475046592,-375.08996329,0.0001378,2]
[352982375,1739475046603,-500.0,0.0001378,2]
[352982377,1739475046613,-537.4,0.0001378,2]
[352982379,1739475046623,-500.0,0.0001378,2]
[352982381,1739475046634,-220.40765364,0.0001378,2]
[352982384,1739475046644,-500.0,0.0001378,2]
[352982385,1739475046655,-633.82,0.0001378,2]
[352982388,1739475046666,-500.0,0.0001378,2]
[352982389,1739475046676,-579.09,0.0001378,2]
[352982391,1739475046686,-500.0,0.0001378,2]
[352982393,1739475046698,-500.0,0.0001378,2]
[352982396,1739475046708,-500.0,0.0001378,2]
[352982397,1739475046719,-500.0,0.0001378,2]
[352982399,1739475046729,-500.0,0.0001378,2]
[352982401,1739475046739,-513.18781357,0.0001378,2]
[352982403,1739475046749,-500.0,0.0001378,2]
[352982406,1739475046759,-500.0,0.0001378,2]
[352982407,1739475046769,-500.0,0.0001378,2]
[352982409,1739475046779,-500.0,0.0001378,2]
[352982411,1739475046788,-500.0,0.0001378,2]
[352982413,1739475046802,-971.08,0.0001378,2]
[352982415,1739475046811,-500.0,0.0001378,2]
[352982419,1739475046823,-658.14,0.0001378,2]
[352982421,1739475046834,-500.0,0.0001378,2]
[352982423,1739475046845,-226.81213273,0.0001378,2]
[352982425,1739475046855,-500.0,0.0001378,2]
[352982427,1739475046866,-500.0,0.0001378,2]
[352982429,1739475046876,-500.0,0.0001378,2]
[352982431,1739475046886,-500.0,0.0001378,2]
[352982432,1739475046896,-500.0,0.0001378,2]
[352982435,1739475046906,-500.0,0.0001378,2]
[352982436,1739475046915,-1333.9,0.0001378,2]
[352982438,1739475046925,-500.0,0.0001378,2]
[352982440,1739475046935,-500.0,0.0001378,2]
[352982442,1739475046945,-500.0,0.0001378,2]
[352982444,1739475046955,-1358.53,0.0001378,2]
[352982446,1739475046965,-500.0,0.0001378,2]
[352982448,1739475046974,-500.0,0.0001378,2]
[352982450,1739475046984,-164.96469723,0.0001378,2]
[352982452,1739475046994,-770.41,0.0001378,2]
[352982454,1739475047004,-696.45,0.0001378,2]
[352982456,1739475047014,-500.0,0.0001378,2]
[352982458,1739475047024,-500.0,0.0001378,2]
[352982460,1739475047035,-500.0,0.0001378,2]
[352982462,1739475047049,-500.0,0.0001378,2]
[352982464,1739475047059,-637.68972311,0.0001378,2]
[352982466,1739475047069,-500.0,0.0001378,2]
[352982468,1739475047079,-500.0,0.0001378,2]
[352982470,1739475047090,-500.0,0.0001378,2]
[352982472,1739475047100,-500.0,0.0001378,2]
[352982474,1739475047110,-500.0,0.0001378,2]
[352982476,1739475047120,-500.0,0.0001378,2]
[352982478,1739475047130,-500.0,0.0001378,2]
[352982480,1739475047141,-1076.78,0.0001378,2]
[352982482,1739475047150,-500.0,0.0001378,2]
[352982484,1739475047160,-500.0,0.0001378,2]
[352982486,1739475047169,-500.0,0.0001378,2]
[352982488,1739475047179,-1417.18,0.0001378,2]
[352982490,1739475047188,-1609.65,0.0001378,2]
[352982492,1739475047198,-437.77467859,0.0001378,2]
[352982494,1739475047207,-500.0,0.0001378,2]
[352982496,1739475047217,-671.2,0.0001378,2]
[352982498,1739475047226,-581.63,0.0001378,2]
[352982500,1739475047235,-806.7,0.0001378,2]
[352982502,1739475047245,-2618.02,0.0001378,2]
[352982504,1739475047255,-500.0,0.0001378,2]
[352982506,1739475047265,-1750.07,0.0001378,2]
[352982508,1739475047275,-4154.59,0.0001378,2]
[352982510,1739475047285,-500.0,0.0001378,2]
[352982512,1739475047297,-500.0,0.0001378,2]
[352982514,1739475047306,-500.0,0.0001378,2]
[352982516,1739475047316,-178.32,0.0001378,2]
[352982518,1739475047326,-500.0,0.0001378,2]
[352982520,1739475047336,-500.0,0.0001378,2]
[352982521,1739475047345,-2233.08,0.0001378,2]
[352982523,1739475047356,-500.0,0.0001378,2]
[352982526,1739475047366,-500.0,0.0001378,2]
[352982528,1739475047376,-500.0,0.0001378,2]
[352982530,1739475047386,-500.0,0.0001378,2]
[352982532,1739475047397,-1275.0,0.0001378,2]
[352982533,1739475047407,-872.37,0.0001378,2]
[352982536,1739475047418,-500.0,0.0001378,2]
[352982538,1739475047427,-500.0,0.0001378,2]
[352982540,1739475047438,-3092.65,0.0001378,2]
[352982542,1739475047447,-500.0,0.0001378,2]
[352982544,1739475047457,-500.0,0.0001378,2]
[352982546,1739475047469,-500.0,0.0001378,2]
[352982548,1739475047479,-500.0,0.0001378,2]
[352982549,1739475047489,-4304.73,0.0001378,2]
[352982551,1739475047498,-500.0,0.0001378,2]
[352982553,1739475047509,-1856.21,0.0001378,2]
[352982555,1739475047519,-766.36,0.0001378,2]
[352982557,1739475047529,-500.0,0.0001378,2]
[352982559,1739475047538,-500.0,0.0001378,2]
[352982561,1739475047550,-1291.66,0.0001378,2]
[352982563,1739475047561,-1162.65,0.0001378,2]
[352982565,1739475047570,-500.0,0.0001378,2]
[352982567,1739475047580,-10291.65,0.0001378,2]
[352982569,1739475047589,-500.0,0.0001378,2]
[352982571,1739475047598,-500.0,0.0001378,2]
[352982573,1739475047607,-757.4,0.0001378,2]
[352982575,1739475047617,-500.0,0.0001378,2]
[352982577,1739475047626,-1125.5,0.0001378,2]
[352982579,1739475047636,-503.34646127,0.0001378,2]
[352982581,1739475047645,-500.0,0.0001378,2]
[352982583,1739475047655,-31380.31,0.0001378,2]
[352982585,1739475047664,-923.57,0.0001378,2]
[352982587,1739475047673,-1121.19,0.0001378,2]
[352982589,1739475047683,-500.0,0.0001378,2]
[352982591,1739475047693,-1780.54,0.0001378,2]
[352982593,1739475047703,-500.0,0.0001378,2]
[352982595,1739475047713,-500.0,0.0001378,2]
[352982597,1739475047723,-1585.84,0.0001378,2]
[352982599,1739475047733,-500.0,0.0001378,2]
[352982601,1739475047742,-783.77,0.0001378,2]
[352982603,1739475047752,-500.0,0.0001378,2]
[352982605,1739475047761,-500.0,0.0001378,2]
[352982607,1739475047771,-500.0,0.0001378,2]
[352982609,1739475047781,-500.0,0.0001378,2]
[352982611,1739475047791,-500.0,0.0001378,2]
[352982613,1739475047801,-951.6,0.0001378,2]
[352982614,1739475047810,-509.64060357,0.0001378,2]
[352982615,1739475047819,-567.09,0.0001378,2]
[352982616,1739475047828,-500.0,0.0001378,2]
[352982617,1739475047837,-500.0,0.0001378,2]
[352982618,1739475047846,-500.0,0.0001378,2]
[352982619,1739475047855,-14092.7,0.0001378,2]
[352982620,1739475047865,-500.0,0.0001378,2]
[352982621,1739475047875,-500.0,0.0001378,2]
[352982622,1739475047884,-500.0,0.0001378,2]
[352982623,1739475047894,-500.0,0.0001378,2]
[352982624,1739475047903,-500.0,0.0001378,2]
[352982625,1739475047912,-673.23,0.0001378,2]
[352982626,1739475047921,-500.0,0.0001378,2]
[352982627,1739475047930,-508.58,0.0001378,2]
[352982628,1739475047939,-839.97,0.0001378,2]
[352982629,1739475047948,-672.65,0.0001378,2]
[352982631,1739475047958,-808.75,0.0001378,2]
[352982633,1739475047967,-500.0,0.0001378,2]
[352982635,1739475047977,-500.0,0.0001378,2]
[352982637,1739475047986,-500.0,0.0001378,2]
[352982639,1739475047996,-1326.14,0.0001378,2]
[352982641,1739475048006,-624.69,0.0001378,2]
[352982643,1739475048016,-500.0,0.0001378,2]
[352982645,1739475048026,-2281.73,0.0001378,2]
[352982647,1739475048036,-517.17185615,0.0001378,2]
[352982649,1739475048048,-500.0,0.0001378,2]
[352982651,1739475048058,-580.31,0.0001378,2]
[352982653,1739475048069,-2835.15,0.0001378,2]
[352982655,1739475048079,-500.0,0.0001378,2]
[352982657,1739475048090,-550.57,0.0001378,2]
[352982659,1739475048100,-500.0,0.0001378,2]
[352982661,1739475048110,-567.42,0.0001378,2]
[352982663,1739475048120,-1080.31,0.0001378,2]
[352982665,1739475048130,-1331.93,0.0001378,2]
[352982667,1739475048140,-500.0,0.0001378,2]
[352982669,1739475048151,-6039.11,0.0001378,2]
[352982671,1739475048162,-500.0,0.0001378,2]
[352982673,1739475048172,-500.0,0.0001378,2]
[352982675,1739475048182,-500.0,0.0001378,2]
[352982677,1739475048191,-585.93,0.0001378,2]
[352982679,1739475048202,-500.0,0.0001378,2]
[352982681,1739475048211,-500.0,0.0001378,2]
[352982683,1739475048222,-552.7,0.0001378,2]
[352982685,1739475048233,-1143.99,0.0001378,2]
[352982687,1739475048244,-803.51,0.0001378,2]
[352982690,1739475048254,-500.0,0.0001378,2]
[352982691,1739475048265,-500.0,0.0001378,2]
[352982693,1739475048276,-500.0,0.0001378,2]
[352982695,1739475048287,-564.04,0.0001378,2]
[352982697,1739475048300,-500.0,0.0001378,2]
[352982699,1739475048310,-500.0,0.0001378,2]
[352982701,1739475048321,-500.0,0.0001378,2]
[352982703,1739475048331,-500.0,0.0001378,2]
[352982705,1739475048341,-513.96777686,0.0001378,2]
[352982708,1739475048352,-2823.75,0.0001378,2]
[352982709,1739475048362,-42716.0,0.000138,2]
[352982711,1739475048372,-154.6488878,0.000138,2]
[352982713,1739475048382,-215.9004297,0.000138,2]
[352982715,1739475048394,-154.6488878,0.000138,2]
[352982717,1739475048405,-215.9004297,0.000138,2]
[352982720,1739475048418,-215.9004297,0.000138,2]
[352982722,1739475048429,-154.6488878,0.000138,2]
[352982724,1739475048441,-151.0,0.000138,2]
[352982726,1739475048451,-215.9004297,0.000138,2]
[352982728,1739475048462,-215.9004297,0.000138,2]
[352982730,1739475048473,-241.6812,0.000138,2]
[352982732,1739475048488,-241.6812,0.000138,2]
[352982733,1739475048499,-878.090959,0.000138,2]
[352982735,1739475048510,-878.090959,0.000138,2]
[352982737,1739475048520,-215.9004297,0.000138,2]
[352982738,1739475048530,-151.0,0.000138,2]
[352982741,1739475048542,-154.6488878,0.00013836,2]
[352982742,1739475048553,-2965.37311862,0.00013845,2]
[352982744,1739475048566,-151.0,0.00013863,2]
[352982746,1739475048577,-519.77469874,0.00013863,2]
[352982748,1739475048588,-505.92308399,0.00013863,2]
[352982750,1739475048598,-500.0,0.00013863,2]
[352982752,1739475048608,-500.0,0.00013863,2]
[352982754,1739475048618,-500.0,0.00013863,2]
[352982756,1739475048629,-500.0,0.00013863,2]
[352982758,1739475048639,-500.0,0.00013863,2]
[352982760,1739475048650,-311.19698643,0.00013863,2]
[352982762,1739475048661,-500.0,0.00013863,2]
[352982776,1739475048804,-500.0,0.00013863,2]
[352982778,1739475048815,-500.0,0.00013863,2]
[352982780,1739475048827,-500.0,0.00013863,2]
[352982782,1739475048837,-500.0,0.00013863,2]
[352982784,1739475048847,-500.0,0.00013863,2]
[352982786,1739475048858,-500.0,0.00013863,2]
[352982788,1739475048869,-500.0,0.00013863,2]
[352982790,1739475048880,-500.0,0.00013863,2]
[352982792,1739475048890,-500.0,0.00013863,2]
[352982794,1739475048900,-500.0,0.00013863,2]